Cogmind - Beta 16 @@@ ROGUE MODE // 2026.01.03 @ 06:19:23 Player: kim.jet.wav Result: Destroyed by WO-EA3(R) with Subdweller Machine Gun Performance ------------- Evolutions (0) 0 Regions Visited (3) 600 Robots Destroyed (5) 25 Value Destroyed (133) 133 Prototype IDs (0) 0 Alien Tech Used (0) 0 Bonus (0) 0 TOTAL SCORE: 758 Bonus ------- None Cogmind --------- Core Integrity 0/250 Matter 230/300 Energy 136/250 System Corruption 0% Temperature Cool (0) Movement Walking (190) Ox1 Location -10/Subcaves Parts ------- > --- POWER (1) -------- Ion Engine > --- PROPULSION (2) --- Aluminum Leg > --- UTILITY (2) ------ Small Storage Unit Seismic Detector > --- WEAPON (2) ------- EM Shotgun EM Shotgun > --- INVENTORY (8) ---- Light Ion Engine Medium Laser Medium Laser Peak State ------------ > --- POWER ------------ Ion Engine > --- PROPULSION ------- Aluminum Leg Aluminum Leg > --- UTILITY ---------- Small Storage Unit Seismic Detector > --- WEAPON ----------- EM Shotgun EM Shotgun > --- INVENTORY -------- Light Ion Engine Medium Laser Medium Laser [Rating: 9] Favorites ----------- Power Ion Engine Engine Ion Engine Propulsion Aluminum Leg Leg Aluminum Leg Utility Small Storage Unit Device Seismic Detector Storage Small Storage Unit Weapon Medium Laser Energy Gun Medium Laser Launcher Grenade Launcher Build | -11 -10 -10 -10 ------- Run | Yrd Mat Min Sub Slots Evolved . | . . . . Power . | . . . . Propulsion . | . . . . Utility . | . . . . Weapon . | . . . . Parts Attached 10 | 7 . 1 2 Power 1 | 1 . . . Engine 1 | 1 . . . Core . | . . . . Reactor . | . . . . Propulsion 2 | 2 . . . Treads . | . . . . Leg 2 | 2 . . . Wheel . | . . . . Hover . | . . . . Flight . | . . . . Utility 2 | 2 . . . Device 1 | 1 . . . Storage 1 | 1 . . . Processor . | . . . . Hackware . | . . . . Protection . | . . . . Artifact . | . . . . Weapon 5 | 2 . 1 2 Energy Gun 4 | 2 . . 2 Energy Cannon . | . . . . Ballistic Gun . | . . . . Ballistic Cannon . | . . . . Launcher 1 | . . 1 . Special Weapon . | . . . . Impact Weapon . | . . . . Slashing Weapon . | . . . . Piercing Weapon . | . . . . Special Melee Weapon . | . . . . Unidentified Prototypes . | . . . . Parts Lost 2 | . . . 2 Power . | . . . . Propulsion 1 | . . . 1 Utility . | . . . . Weapon 1 | . . . 1 Highest Loss Streak 1 | . . . 1 To Critical Strikes . | . . . . Average Backups 2 | . 2 4 3 Power . | . 1 1 1 Propulsion . | . . . . Utility . | . . . . Weapon 1 | . 1 3 2 Tool/Special . | . . . . Unused Backups 1 | . . . 1 Power 1 | . . . 1 Propulsion . | . . . . Utility . | . . . . Weapon . | . . . . Tool/Special . | . . . . Average Slot Usage (%) 98 | . 100 100 96 Engine 14 | . 14 14 14 Leg 26 | . 28 28 25 Device 14 | . 14 14 14 Storage 14 | . 14 14 14 Energy Gun 23 | . 28 19 21 Launcher 4 | . . 8 7 Peak Build Rating 9 | 7 7 7 9 Average Rating 6 | 5 7 7 7 On Entrance 5 | . 7 7 7 Avg Prop Armor Cover (%) 14 | 14 . . . Naked Turns . | . . . . Heaviest Build 17 | 15 15 16 17 Greatest Support 20 | 20 20 20 20 Greatest Overweight (x) 4 | 4 . . 1 Average Overweight (x) . | . . . . Largest Inventory Capacity 8 | 8 8 8 8 Average Capacity 7 | 7 8 8 8 Most Carried 4 | 1 4 4 4 Average Carried 2 | . 2 4 3 Final Capacity 8 | 8 8 8 8 Final Carried 4 | 1 4 4 3 Class Distribution -------------------- 100% | Mutant Dominant Class ---------------- Mutant | -10/Materials Mutant | -10/Mines Mutant | -10/Subcaves Resources | -11 -10 -10 -10 ----------- Run | Yrd Mat Min Sub Matter Collected 260 | 240 . . 20 Remotely . | . . . . Salvage Created 185 | 64 . . 121 Parts 13 | 5 . . 8 Haulers Intercepted . | . . . . Recyclers Shooed . | . . . . Parts Field Recycled . | . . . . Retrieved Matter . | . . . . Parts Self-Destructed . | . . . . Prevented . | . . . . Parts Restored . | . . . . Kills | -11 -10 -10 -10 ------- Run | Yrd Mat Min Sub Combat Hostiles Destroyed 3 | . . . 3 Guns 2 | . . . 2 Classes Destroyed 3 | 2 . . 1 Tunneler 1 | 1 . . . Recycler 1 | 1 . . . Subdweller 3 | . . . 3 Best Kill Streak 2 | 2 . . 2 Combat Bots Only 2 | . . . 2 Max Kills in Single Turn 1 | 1 . . 1 Gunslinging . | . . . . Exploded . | . . . . Melee . | . . . . Uniques/NPCs Destroyed . | . . . . Combat | -11 -10 -10 -10 -------- Run | Yrd Mat Min Sub Hostile Shots Fired 54 | . . . 54 Missed 18 | . . . 18 Hits 36 | . . . 36 Projectile 36 | . . . 36 Damage Taken 771 | . . . 771 Core 258 | . . . 258 Absorbed by Shields . | . . . . Core Remaining (%) 100 | 100 . . . Volleys Fired 22 | 5 . . 17 Largest 2 | 2 . . 2 Hottest 100 | 100 . . 100 Shots Fired 41 | 10 . . 31 Gun 39 | 10 . . 29 Cannon . | . . . . Launcher 2 | . . . 2 Special . | . . . . Kinetic . | . . . . Thermal 22 | 10 . . 12 Explosive 2 | . . . 2 Electromagnetic 17 | . . . 17 Robot Hit Streak 16 | 5 . . 16 Robot Miss Streak 2 | 1 . . 2 Penetration Max . | . . . . Secondary Targets 2 | . . . 2 Max Gunslinging Chain 1 | . . . 1 Shots Hit Robots 29 | 7 . . 22 Core Hits 13 | 3 . . 10 Critical Kills . | . . . . Critical Parts Destroyed . | . . . . Critical Strikes 2 | 1 . . 1 Burn 2 | 1 . . 1 Melee Attacks . | . . . . Impact . | . . . . Slashing . | . . . . Piercing . | . . . . Sneak Attacks . | . . . . Combat Hostiles . | . . . . Follow-up Attacks . | . . . . Damage Inflicted 611 | 89 . . 522 Guns 428 | 89 . . 339 Cannons . | . . . . Explosions 183 | . . . 183 Melee . | . . . . Ramming . | . . . . Kinetic . | . . . . Thermal 177 | 89 . . 88 Explosive 183 | . . . 183 Electromagnetic 251 | . . . 251 Impact . | . . . . Slashing . | . . . . Piercing . | . . . . Highest Corruption . | . . . . Average Corruption . | . . . . Corruption Purged . | . . . . Corruption Blocked . | . . . . Overload Shots . | . . . . Overflow Damage . | . . . . Projectiles . | . . . . Explosions . | . . . . Melee . | . . . . Knockbacks . | . . . . Impact . | . . . . Kinetic . | . . . . Secondary . | . . . . Self-Inflicted Damage . | . . . . Shots . | . . . . Rammed . | . . . . Targets Rammed . | . . . . Kicked . | . . . . Crushed . | . . . . Highest Temperature 195 | 195 . . . Average Temperature 100 | 100 . . . Received Heat Transfer 120 | . . . 120 Siege Activations . | . . . . Martial Activations . | . . . . Shielding Activations . | . . . . Robots Disrupted 1 | . . . 1 Combat Hostiles 1 | . . . 1 Robots Corrupted 1 | . . . 1 Combat Hostiles 1 | . . . 1 Parts Fried 1 | . . . 1 Impact Corruptions . | . . . . Robots Melted . | . . . . Combat Hostiles . | . . . . Parts Melted 1 | 1 . . . Heat Transferred 666 | 333 . . 333 Parts Sabotaged . | . . . . Parts Stolen . | . . . . Parts Stripped . | . . . . Power Chain Reactions . | . . . . Alert | -11 -10 -10 -10 ------- Run | Yrd Mat Min Sub Maximum Alert Level . | . . . . Low Security (%) 100 | 100 100 100 . Level 1 . | . . . . Level 2 . | . . . . Level 3 . | . . . . Level 4 . | . . . . Level 5 . | . . . . High Security . | . . . . Max Security . | . . . . Peak Influence 5 | 5 . 5 . Initial . | . . . . Average . | . . 1 . Influence Increases 15 | 10 . 5 . Destroy 0b10 Robot/NC 10 | 10 . . . Successful Hack 5 | . . 5 . Influence Decreases 15 | 10 . 5 . Time Decay 15 | 10 . 5 . Squads Dispatched . | . . . . Investigation . | . . . . Extermination . | . . . . Reinforcement . | . . . . Assault . | . . . . Garrison . | . . . . Intercept . | . . . . Searches Triggered . | . . . . Construction Impeded . | . . . . Haulers Reinforced . | . . . . Active Scanning Responses . | . . . . Cargo Convoy Interrupts . | . . . . Stealth | -11 -10 -10 -10 --------- Run | Yrd Mat Min Sub Distress Signals . | . . . . Communications Jammed . | . . . . Distress Signals . | . . . . Times Spotted 6 | . . . 6 Peak Tracking Total 4 | . . . 4 Tactical Retreats . | . . . . Traps | -11 -10 -10 -10 ------- Run | Yrd Mat Min Sub Traps Triggered . | . . . . Indirectly . | . . . . Trap Hack Attempts . | . . . . Triggered . | . . . . Disarmed . | . . . . Reprogrammed . | . . . . Reused . | . . . . Traps Extracted . | . . . . Installed . | . . . . Triggered . | . . . . Machines | -11 -10 -10 -10 ---------- Run | Yrd Mat Min Sub Machines Disabled . | . . . . Max in Single Turn . | . . . . Machines Repaired . | . . . . Machines Dismantled . | . . . . Machines Sabotaged . | . . . . Overloaded Fab Kills . | . . . . Hacking | -11 -10 -10 -10 --------- Run | Yrd Mat Min Sub Machines Accessed 2 | . 1 1 . Terminals 2 | . 1 1 . Fabricators . | . . . . Repair Stations . | . . . . Recycling Units . | . . . . Scanalyzers . | . . . . Garrison Access . | . . . . Total Hacks 2 | . 1 1 . Successful 1 | . . 1 . Failed 1 | . 1 . . Catastrophic 1 | . 1 . . Database Lockouts . | . . . . Manual 1 | . 1 . . Terminals 2 | . 1 1 . Fabricators . | . . . . Repair Stations . | . . . . Recycling Units . | . . . . Scanalyzers . | . . . . Garrison Access . | . . . . Terminal Hacks 1 | . . 1 . Zone Layout 1 | . . 1 . Fabricator Hacks . | . . . . Repair Station Hacks . | . . . . Recycling Unit Hacks . | . . . . Scanalyzer . | . . . . Garrison Access Hacks . | . . . . Unauthorized Hacks . | . . . . Terminals . | . . . . Fabricators . | . . . . Repair Stations . | . . . . Recycling Units . | . . . . Scanalyzers . | . . . . Garrison Access . | . . . . Data Cores Recovered . | . . . . Used . | . . . . Hacking Detections 1 | . 1 . . Full Trace Events . | . . . . Feedback Events . | . . . . Feedback Blocked . | . . . . Robot Schematics Acquired . | . . . . Robots Built . | . . . . Authchips . | . . . . Time . | . . . . Total Robot Build Rating . | . . . . Part Schematics Acquired . | . . . . Parts Built . | . . . . Authchips . | . . . . Time . | . . . . Total Part Build Rating . | . . . . Part Studies Acquired . | . . . . Parts Repaired . | . . . . Time . | . . . . Parts Recycled . | . . . . Recycled Matter . | . . . . Retrieved Matter . | . . . . Retrieved Components . | . . . . Parts Scanalyzed . | . . . . Part Schematics Acquired . | . . . . Parts Damaged . | . . . . Bothacking | -11 -10 -10 -10 ------------ Run | Yrd Mat Min Sub Used RIF Installer . | . . . . Robots Hacked . | . . . . Non-combat . | . . . . Combat . | . . . . Robot Hacks Applied . | . . . . Relay Couplers Released . | . . . . Fabnet Peak Effective % . | . . . . Robots Rewired . | . . . . Allies Hacked . | . . . . Hacks Repelled . | . . . . Allies | -11 -10 -10 -10 -------- Run | Yrd Mat Min Sub Total Allies . | . . . . Largest Group . | . . . . Highest-Rated Group . | . . . . Highest-Rated Ally . | . . . . Total Orders . | . . . . Ally Attacks . | . . . . Total Damage . | . . . . Kills . | . . . . Allies Corrupted . | . . . . Allies Melted . | . . . . Intel | -11 -10 -10 -10 ------- Run | Yrd Mat Min Sub Active Infowar (turns) 314 | 33 104 48 129 Seismic 314 | 33 104 48 129 Robot Analysis Total . | . . . . Derelict Logs Recovered . | . . . . Drone Launches . | . . . . Drone Recoveries . | . . . . Exploration | -11 -10 -10 -10 ------------- Run | Yrd Mat Min Sub Turns Passed 395 | 114 104 48 129 Spaces Moved 243 | 64 85 32 62 Core 14 | 14 . . . Treads . | . . . . Legs 229 | 50 85 32 62 Wheels . | . . . . Hover . | . . . . Flight . | . . . . Fastest Speed 50 | 50 120 120 120 Average Speed 123 | 129 120 120 122 Slowest Speed 250 | 250 120 120 190 Overloaded Moves . | . . . . Propulsion Burnouts . | . . . . Robots Hopped . | . . . . Potential Cave-ins . | . . . . Cave-ins Triggered . | . . . . Exploration Rate (%) 7 | 5 13 4 9 Regions Visited 3 Branch Regions 2 Pre-discovered Areas . | . . . . Known Exits Taken . | . . . . Unknown Exits Taken 3 | 1 1 1 . Scrap Searched . | . . . . Spaces Dug . | . . . . Terrain Destroyed 8 | . . . 8 Melee . | . . . . Projectile . | . . . . AOE 8 | . . . 8 Terrain Rammed . | . . . . Walls Destroyed . | . . . . Machines Disabled . | . . . . Actions | -11 -10 -10 -10 --------- Run | Yrd Mat Min Sub Total 292 | 81 87 41 83 Wait 14 | 5 . 9 . Move 240 | 63 84 31 62 Hop . | . . . . Pick Up 4 | 1 3 . . Fast Attach 7 | 7 . . . Attach 1 | . . . 1 Detach . | . . . . Swap 4 | . . 1 3 Drop . | . . . . Fire 22 | 5 . . 17 Melee . | . . . . Ram . | . . . . Kick . | . . . . Crush . | . . . . Escape Stasis . | . . . . Rewire . | . . . . Trap . | . . . . Miscellaneous . | . . . . Route ------- -11/Scrapyard -10/Materials -10/Mines -10/Subcaves (discovered 1 exit: [Scr]) History --------- Turn | Location | Event 19 | -11/Scrapyard | Discovered new exit (range 15) 115 | -11/Scrapyard | Entered Materials 125 | -10/Materials | Discovered new exit (range 3) 219 | -10/Materials | Entered Mines 261 | -10/Mines | Discovered new exit (range 5) 267 | -10/Mines | Entered Subcaves 268 | -10/Subcaves | Approached by a straggling Scientist 317 | -10/Subcaves | Build established: Mutant 371 | -10/Subcaves | Core integrity fell below 50% 389 | -10/Subcaves | Core integrity fell below 20% 396 | -10/Subcaves | Destroyed by WO-EA3(R) with Subdweller Machine Gun Last Messages --------------- 00342_ Z9-WYX(O) puts together Battle Rifle. 00342_ Subatomizers dissect the Sub. Optics. 00344_ Z9-WYX(O) collects matter. 00345_ Acquired 20 matter. 00359_ CT-OK4(R) reactivates. 00363_ 4K-UQK(R) suffers critical hit (Burn). 00364_ 4K-UQK(R) heat damages Sub. Optics. 00368_ Aluminum Leg destroyed. 00371_ CT-OK4(R) destroyed. 00372_ The unstable cave ceiling collapses. 00372_ Disposable Heat Sink crushed. 00378_ 4K-UQK(R) misfires. 00379_ 4K-UQK(R) system terminally corrupted. 00379_ Sub. Power Source fried. 00381_ WO-EA3(R) affixes Scrap Shield Fragment to Scrap Shield. 00382_ Subatomizers dissect the Sub. Monowheel. 00384_ VL-J96(R) affixes Scrap Shield Fragment to Scrap Shield. 00391_ VL-J96(R) destroyed. 00391_ Switching to secondary target: WO-EA3(R). 00395_ WO-EA3(R) affixes Scrap Shield Fragment to Scrap Shield. Map ----- +----------------------------------------------------+ | ???????????????????????????????????????##????????? | | ??????????????????????????????????????? ????????? | | ??????????????????????????????????????? ????????? | | ??????????????????????????????###?????? ????????? | | ??????????????????????????????# ????## ????????? | | ??????????????????????????????? ?### ????????? | | ???????????????????????????????# ## ????????? | | ???????????????????????????????# ????????? | | ???????????????????????????????# ????????? | | ??????????????????????????#???## ????????? | | ??????????????????????????# ## ???###??? | | ??????????????????????????# #???# ### | | ???????????????????????????# #???? # | | ??????????????????#####????# ###???# | | ??????????????????# ????# ##??# | | ??????????????????? ?????# #?## | | ???????????????????# ?###????# #### ### | | ???????????????????# ? ????## ????# | | ???????????????????## ?# #????## #??### | | ???????????????????# ## #???## #?## | | ???????????????????## # ##### #?# ## ##### | | ???????????????????# ## ### ## #???? | | ???????????????????# ## #?# ## ###?? | | ???????????????????# % ### #?? | | ??????????????????## !&%|= #?? | | ????????? # ##" @!R ! ##?? | | ?????????? " !# ; ##??? | | ?????????? # ### #### ###???? | | ???????????# " #######?###?# ##?????? | | ???????????# "##"??????????? #??????? | | ??????????????????????????# ## ????? | | ???????????????????????? " ## ??? | | ????????????????????????#" ## ### ##?? | | ????????????????????????## ### ## " "#?? #??? | | ?????????????????????????#???# ? ""??? #??? | | ????????????????????????????? & "#???#??? | | ???????????????????????????? ???????? | | ??????????????????????????? " #??????? | | ?????????????????????????? & ##??????? | | ??????????????????????????? % #######???????? | | ????????????????????????????? ? #??????????????? | | ?????????????????????????????????????????????????? | | ????????????????????????????????????????>????????? | | ?????????????????????????????????????????????????? | | ?????????????????????????????????????????????????? | | ?????????????????????????????????????????????????? | | ?????????????????????????????????????????????????? | | ?????????????????????????????????????????????????? | | ?????????????????????????????????????????????????? | | ?????????????????????????????????????????????????? | +----------------------------------------------------+ Best States ------------- Heat Dissipation 25 Energy Generation 10 Energy Capacity 250 Matter Stores 270 Matter Capacity 300 Sight Range 16 Terrain Scan Density 10 Evasion (%) 55 Item Schematics ----------------- None Robot Schematics ------------------ None Fabricated ------------ Nothing Repaired ---------- Nothing Studied --------- None Alien Tech Used ----------------- None Achievements -------------- None Challenges ------------ None Game ------ Seed IntegritySystemShield Manual? 0 Play Time 00:10:24 Cumulative 50.7 hours Start 2026.01.03 @ 05:59:54 End 2026.01.03 @ 06:19:23 Sessions 3 Manual Loads 0 Difficulty Rogue Special Mode None Game No. 219 Rogue 219 Adventurer 0 Explorer 0 Win Type - Total 0 Types 0/0/0/0/0/0/0/0/0/0 Lore% 27 Gallery% 21 Achievement% 16 Wizard Run 0 Options --------- Layout 0 ASCII 1 Keyboard 1 Movement Numpad Keybinds 1 Fullscreen 1 Font 18/X11 Map View 76x50 Zoom Use 0% Tactical HUD 1 Map Filters NONE Filters NONE Steam 1 RUN: d6ecb5a5-eb80-45a9-917c-8dd90068fb71